bitfinex-derivatives/quotes_ETHF0:USTF0_20250308
["timestamp","ask_amount","ask_price","bid_price","bid_amount"]
[1741432829207,2.7456,2131.4,2130.9,0.00703202]
[1741432830612,3.2078,2131.2,2130.9,0.00703202]
[1741432830910,3.2078,2131.2,2130.4,1.2304]
[1741432831108,3.2078,2130.9,2130.4,1.2304]
[1741432831415,2.7496,2130.8,2130.4,1.2304]
[1741432832210,2.75663202,2130.8,2130.4,1.23743202]
[1741432832720,2.75663202,2130.8,2130.4,0.00703202]
[1741432833820,3.2078,2130.6,2130.4,0.00703202]
[1741432834611,3.2078,2130.6,2129.6,8.9137]
[1741432834816,3.2078,2130.6,2129.7,1.2822]
[1741432835017,0.6677,2130.5,2129.8,15.4]
[1741432835217,2.086,2130.4,2129.8,15.4]
[1741432835613,3.2078,2130.3,2129.7,1.2822]
[1741432835920,0.6445,2130.2,2129.9,0.00703202]
[1741432837011,2.086,2130.4,2129.9,3.21483202]
[1741432838320,2.085,2130.5,2129.9,3.21483202]
[1741432839224,2.085,2130.5,2130.2,3.2078]
[1741432839420,2.085,2130.5,2130.3,0.6702]
[1741432840320,2.085,2130.5,2130.3,1.2769]
[1741432842624,3.2078,2130.9,2130.3,1.2769]
[1741432842828,2.082,2130.7,2130.3,1.2769]
[1741432843321,3.2078,2130.9,2130.3,1.2769]
[1741432843626,5.2898,2130.9,2130.5,3.2078]
[1741432844624,3.2078,2130.9,2130.5,3.2078]
[1741432845323,2.08,2131.0,2130.8,3.2078]
[1741432845526,2.08,2131.0,2130.9,0.6228]
[1741432845728,2.081,2131.3,2130.9,0.6228]
[1741432846122,2.08803202,2131.3,2130.9,0.6228]
[1741432846519,0.00703202,2131.3,2130.9,0.6228]
[1741432848123,0.00703202,2131.3,2131.0,0.6478]
[1741432849223,3.2565,2131.7,2131.0,0.6478]
[1741432849224,3.2078,2131.7,2131.2,3.2078]
[1741432849437,5.2888,2132.0,2131.5,3.2078]
[1741432849626,5.2888,2132.0,2131.6,0.6268]
[1741432850633,5.29583202,2132.0,2131.6,0.63383202]
[1741432851435,0.00703202,2132.0,2131.6,0.63383202]
[1741432851923,0.00703202,2132.0,2131.8,3.2078]
[1741432852525,0.00703202,2132.0,2131.9,0.6247]
[1741432853729,2.7424,2132.6,2131.9,0.6247]
[1741432853927,3.2078,2132.4,2131.9,0.6247]
[1741432855031,3.21483202,2132.4,2131.9,0.6247]
[1741432855431,5.30383202,2132.4,2131.9,0.6247]
[1741432858837,2.09603202,2132.4,2131.9,0.6247]
[1741432859734,0.00703202,2132.4,2131.9,0.6247]
[1741432860339,0.00703202,2132.4,2132.1,3.2078]
[1741432860542,0.00703202,2132.4,2132.2,0.6484]
[1741432862134,0.00703202,2132.4,2132.1,3.2078]
[1741432863238,2.09,2133.0,2132.2,1.2586]
[1741432863435,2.09,2133.0,2132.5,3.2078]
[1741432864242,2.09,2133.0,2132.6,0.6353]
[1741432864545,2.089,2133.3,2132.8,3.2078]
[1741432865030,2.089,2133.3,2132.8,3.21483202]
[1741432865234,0.65,2133.5,2133.1,3.2078]
[1741432865432,0.65,2133.5,2133.2,1.2855]
[1741432865643,0.65,2133.5,2133.2,0.6374]
[1741432865836,0.65,2133.5,2133.1,3.2078]
[1741432866439,3.2078,2133.6,2133.1,3.2078]
[1741432868845,3.2078,2133.2,2132.8,0.64443202]
[1741432869044,0.6562,2133.1,2132.8,0.64443202]
[1741432869544,1.263,2133.1,2132.8,0.64443202]
[1741432870539,2.094,2133.2,2133.0,3.2078]
[1741432871238,0.6562,2133.4,2133.0,3.2078]
[1741432871439,3.2078,2133.8,2133.3,3.2078]
[1741432871640,3.2078,2133.8,2133.4,0.6309]
[1741432873741,2.7355,2134.0,2133.4,0.6309]
[1741432873938,0.6405,2134.0,2133.6,3.2078]
[1741432874141,2.093,2134.1,2133.6,3.2078]
[1741432874334,2.093,2134.1,2133.7,0.6239]
[1741432875848,3.2078,2134.2,2133.9,3.2078]
[1741432876649,3.2078,2134.2,2134.0,0.6546]
[1741432877851,3.2078,2134.2,2133.9,3.21483202]
[1741432878240,3.2078,2134.6,2133.9,3.21483202]
[1741432878446,3.2078,2134.6,2134.2,3.2078]
[1741432878648,3.2078,2134.6,2134.3,0.6546]
[1741432879046,5.3038,2134.6,2133.9,3.86943202]
[1741432879746,0.6626,2134.5,2133.9,3.86943202]
[1741432879945,5.3038,2134.6,2133.9,3.86943202]
[1741432881047,3.2078,2134.6,2134.2,3.2078]
[1741432881752,3.2078,2134.6,2134.3,0.6528]
[1741432882145,3.2078,2134.6,2134.4,0.6249]
[1741432884852,3.2078,2134.6,2134.2,3.2078]
[1741432885048,3.2078,2134.6,2134.2,3.8488]
[1741432885754,3.2078,2134.6,2134.2,3.2078]
[1741432885954,0.6036,2134.5,2134.0,0.6405]
[1741432886150,0.638,2134.4,2134.0,0.6405]
[1741432888362,0.638,2134.4,2134.2,3.2078]
[1741432888651,3.2078,2134.6,2134.2,3.2078]
[1741432888855,0.6419,2134.8,2134.5,3.2078]
[1741432889761,3.2078,2134.7,2134.1,5.9477]
[1741432890858,3.2078,2134.7,2134.1,3.8567]
[1741432891060,3.8605,2134.7,2134.1,3.8567]
[1741432891260,3.8605,2134.7,2134.1,3.2078]
[1741432891658,3.93,2134.7,2134.1,3.2078]
[1741432892654,0.6527,2134.7,2134.1,3.2078]
[1741432892858,0.6527,2134.7,2134.1,3.8629]
[1741432894067,0.6419,2134.8,2134.1,3.8629]
[1741432894669,0.6419,2134.8,2134.2,15.4]
[1741432894864,2.089,2134.9,2134.4,3.2078]
[1741432895065,2.089,2134.9,2134.5,1.2469]
[1741432895266,3.2078,2135.0,2134.5,1.2469]
[1741432896062,3.2078,2135.0,2134.6,0.647]
[1741432896563,3.2078,2135.0,2134.5,1.2469]
[1741432898166,3.2078,2135.0,2134.3,2.923]
[1741432898366,4.01011753,2135.0,2134.4,0.6201]
[1741432900863,4.01011753,2135.0,2134.3,2.923]
[1741432901266,4.8075051,2135.0,2134.2,3.8335]
[1741432901768,4.01011753,2135.0,2134.2,3.8335]
[1741432906169,4.80902413,2135.0,2134.2,3.8335]
[1741432907367,3.2078,2134.7,2134.2,0.6257]
[1741432907570,0.6135,2134.6,2134.2,0.6257]
[1741432907972,1.2772,2134.6,2134.2,0.6257]
[1741432908276,2.07951753,2134.6,2134.2,0.6257]
[1741432909471,2.87915494,2134.6,2134.2,0.6257]
[1741432911873,3.2078,2134.3,2134.0,0.6131]
[1741432912078,3.2078,2134.3,2133.9,0.00703202]
[1741432912377,4.80935028,2134.3,2133.9,0.00703202]
[1741432912572,0.0695,2134.2,2133.9,0.00703202]
[1741432912879,0.80231753,2134.2,2133.9,0.00703202]
[1741432913067,4.01457296,2134.3,2133.9,0.61103202]
[1741432913672,4.01457296,2134.3,2133.9,0.00703202]
[1741432916675,3.2078,2134.3,2133.9,0.00703202]
[1741432917377,4.01409072,2134.3,2133.9,0.00703202]
[1741432920484,3.2078,2134.3,2133.9,0.00703202]
[1741432920792,1.2772,2134.6,2134.0,3.2078]
[1741432921084,1.2772,2134.6,2134.1,0.6113]
[1741432921285,2.08344901,2134.6,2134.1,1.2755]
[1741432921485,1.2772,2134.6,2134.2,0.6538]
[1741432921686,0.6135,2134.6,2134.2,0.6538]
[1741432922285,2.077,2134.8,2134.5,3.2078]
[1741432922486,2.25116072,2135.0,2134.5,3.2078]
[1741432922786,1.45244901,2135.0,2134.6,0.6322]
[1741432922988,3.53044901,2135.0,2134.6,0.6322]
[1741432923286,4.32914432,2135.0,2134.5,3.2078]
[1741432924191,2.25114432,2135.0,2134.5,3.2078]
[1741432924488,3.53244901,2135.0,2134.6,0.6322]
[1741432924787,1.45244901,2135.0,2134.6,1.2893]
[1741432925983,1.45244901,2135.0,2134.5,3.2078]
[1741432926588,2.25130616,2135.0,2134.5,3.2078]
[1741432927185,1.45244901,2135.0,2134.5,3.2078]
[1741432927487,3.2078,2134.7,2134.2,4.5242]
[1741432927683,2.6981,2134.6,2134.2,0.6593]
[1741432927990,0.6548,2134.5,2134.2,0.6593]
[1741432928192,3.2078,2134.4,2133.9,3.21483202]
[1741432928383,3.2078,2134.4,2133.9,3.83413202]
[1741432930089,3.2078,2134.4,2133.9,0.00703202]
[1741432930287,3.2078,2134.1,2133.9,0.00703202]
[1741432930485,3.4178,2134.0,2133.9,0.00703202]
[1741432930685,4.29364901,2134.0,2133.4,1.2854]
[1741432931185,3.2078,2133.7,2133.4,1.2854]
[1741432931388,0.80624901,2133.9,2133.4,1.2854]
[1741432931590,4.29364901,2134.0,2133.4,4.4932]
[1741432931986,0.00703202,2133.9,2133.5,0.00703202]
[1741432932183,3.2078,2133.8,2133.5,0.00703202]
[1741432932493,0.81328103,2133.9,2133.5,0.00703202]
[1741432932696,0.00703202,2133.9,2133.5,0.00703202]
[1741432933090,0.00703202,2133.9,2133.7,3.2078]
[1741432934685,3.21483202,2133.9,2133.5,0.00703202]
[1741432934890,0.00703202,2133.9,2133.5,0.00703202]
[1741432935292,0.00703202,2133.9,2133.6,15.4]
[1741432935491,0.00703202,2133.9,2133.5,0.00703202]
[1741432935695,3.2078,2133.6,2133.5,0.00703202]
[1741432936097,4.01314664,2133.6,2133.5,0.00703202]
[1741432936300,4.67444664,2133.6,2133.5,0.00703202]
[1741432936591,4.74484664,2133.6,2133.0,0.6289]
[1741432936792,0.6653,2133.5,2132.8,0.6243]
[1741432936993,3.2078,2133.4,2132.8,0.6243]
[1741432937197,2.091,2133.3,2132.8,0.6243]
[1741432937498,2.89634664,2133.3,2132.8,0.6243]
[1741432937699,2.89634664,2133.3,2132.8,0.63133202]
[1741432938197,2.091,2133.3,2132.8,0.63133202]
[1741432939897,2.89439443,2133.3,2132.8,0.00703202]
[1741432940100,2.091,2133.3,2132.8,0.00703202]
[1741432941693,3.2078,2133.1,2132.8,0.00703202]
[1741432941887,1.2716,2133.0,2132.8,0.00703202]
[1741432944501,0.6679,2133.0,2132.8,0.00703202]
[1741432944997,3.8157,2133.5,2132.8,0.00703202]
[1741432945202,2.091,2133.6,2133.1,3.2078]
[1741432945498,2.7192,2133.8,2133.4,3.2078]
[1741432947400,2.7192,2133.8,2133.2,1.2954]
[1741432947900,3.2078,2133.6,2133.0,2.923]
[1741432948099,0.6696,2133.5,2133.0,2.923]
[1741432948703,3.2078,2133.2,2132.9,0.6276]
[1741432948903,0.6077,2133.1,2132.9,0.6276]
[1741432949201,0.6077,2133.1,2132.8,0.00703202]
[1741432949392,2.094,2133.0,2132.8,0.00703202]
[1741432950499,3.8774,2133.5,2132.8,3.21483202]
[1741432950704,2.096,2133.4,2133.1,3.2078]
[1741432950997,2.097,2133.6,2133.2,0.6397]
[1741432951297,5.3048,2133.6,2133.2,0.6397]
[1741432952501,2.097,2133.6,2133.2,0.6397]
[1741432953102,0.6679,2133.8,2133.4,3.2078]
[1741432953299,2.7689,2133.8,2133.5,0.6426]
[1741432953804,2.7689,2133.8,2133.6,0.629]
[1741432954394,3.21483202,2133.9,2133.6,0.629]
[1741432954603,2.099,2133.8,2133.6,0.629]
[1741432955201,0.00703202,2133.9,2133.6,0.629]
[1741432956805,3.21483202,2133.9,2133.6,0.629]
[1741432957005,4.01945932,2133.9,2133.6,0.629]
[1741432957908,4.01945932,2133.9,2133.4,3.2078]
[1741432958603,4.01945932,2133.9,2133.1,4.5104]
[1741432959000,0.6489,2133.8,2133.1,4.5104]
[1741432959200,3.2078,2133.6,2133.1,4.5104]
[1741432960705,0.6372,2133.5,2133.1,4.5104]
[1741432960899,1.4418273,2133.5,2133.1,4.5104]
[1741432961598,1.4418273,2133.5,2133.1,3.8405]
[1741432964106,1.4418273,2133.5,2133.1,0.6327]
[1741432965205,0.8046273,2133.5,2133.2,3.2078]
[1741432965406,2.8996273,2133.7,2133.2,3.8179]
[1741432965601,2.095,2133.7,2133.2,0.6101]
[1741432967204,2.095,2133.7,2133.2,3.8179]
[1741432967708,3.4048,2133.8,2133.2,3.8179]
[1741432968105,0.6629,2133.8,2133.2,3.8179]
[1741432968407,2.10003202,2133.9,2133.2,3.8179]
[1741432968708,2.90465932,2133.9,2133.2,3.8179]
[1741432972205,2.90465932,2133.9,2133.2,0.6101]
[1741432972407,5.30783202,2133.9,2133.3,3.2078]
[1741432972610,0.8046273,2133.8,2133.4,0.622]
[1741432973016,0.8046273,2133.8,2133.5,0.6228]
[1741432975018,2.10003202,2133.9,2133.5,0.6228]
[1741432975518,5.30783202,2133.9,2133.5,0.6228]
[1741432975716,0.8046273,2133.8,2133.5,0.6228]
[1741432980920,2.50541658,2133.8,2133.1,2.923]
[1741432981111,2.50541658,2133.8,2133.2,1.312]
[1741432981714,1.60467475,2133.8,2133.2,1.312]
[1741432982618,3.2078,2133.6,2133.2,1.312]
[1741432982824,1.2455,2133.5,2133.2,0.6472]
[1741432983325,2.0501273,2133.5,2133.2,0.6472]
[1741432983622,4.1281273,2133.5,2133.0,3.2078]
[1741432983816,4.99780459,2133.5,2133.0,3.2078]
[1741432984127,0.8046273,2133.4,2133.0,3.2078]
[1741432984425,4.99759986,2133.5,2133.0,3.2078]
[1741432984622,1.60419986,2133.4,2133.0,3.2078]
[1741432984923,0.8046273,2133.4,2133.0,3.2078]
[1741432985121,4.1980273,2133.5,2133.0,3.2078]
[1741432985319,3.5203273,2133.5,2133.0,3.2078]
[1741432985520,3.5203273,2133.5,2133.1,0.6658]
[1741432986123,3.5203273,2133.5,2133.0,3.2078]
[1741432986331,4.32001681,2133.5,2133.0,3.2078]
[1741432990027,3.2078,2133.2,2132.9,1.3082]
[1741432991216,0.6215,2133.3,2132.9,1.3082]
[1741432993328,3.2078,2133.2,2132.9,1.3082]
[1741432993927,4.0124273,2133.2,2132.9,1.3082]
[1741432994121,3.2078,2133.2,2132.9,1.3082]
[1741432994321,0.8046273,2133.4,2133.0,3.2078]
[1741432994834,3.8455,2133.5,2133.0,3.2078]
[1741432994835,1.4423273,2133.5,2133.0,3.2078]
[1741432995130,0.6377,2133.5,2133.0,3.2078]
[1741432996633,3.8455,2133.5,2133.0,3.2078]
[1741432996832,4.6501273,2133.5,2133.0,3.2078]
[1741432998137,4.6501273,2133.5,2132.9,1.3082]
[1741432999934,0.8046273,2133.5,2133.0,3.2078]
[1741433000136,3.8445,2133.8,2133.0,3.2078]
[1741433000137,0.8046273,2133.7,2133.0,3.2078]
[1741433000434,2.8756273,2133.7,2133.0,3.2078]
[1741433000632,2.8756273,2133.7,2133.0,5.2798]
[1741433004333,0.8046273,2133.7,2133.0,5.2798]
[1741433004527,2.8736273,2133.7,2133.0,5.2798]
[1741433007935,2.8736273,2133.7,2133.0,3.2078]
[1741433008246,3.2078,2133.5,2133.0,3.2078]
[1741433010244,4.10789581,2133.5,2132.9,1.3082]
[1741433010445,0.8046273,2133.4,2132.9,1.3082]
[1741433011347,3.2078,2133.5,2132.9,1.3082]
[1741433011348,0.6695,2133.3,2132.9,1.3082]
[1741433014851,0.6462,2133.2,2132.9,1.3082]
[1741433016948,0.8046273,2133.4,2133.1,3.2078]
[1741433017150,2.06,2133.6,2133.1,3.2078]
[1741433018453,2.06,2133.6,2133.2,0.6267]
[1741433018949,2.06,2133.6,2133.3,0.6627]
[1741433019150,2.06,2133.6,2133.4,0.6505]
[1741433022054,0.629,2133.8,2133.5,3.2078]
[1741433023749,0.80658486,2134.0,2133.5,3.2078]
[1741433024054,1.44858486,2134.0,2133.5,3.2078]
[1741433024445,0.642,2134.0,2133.5,3.2078]
[1741433024847,5.2668,2134.1,2133.5,3.2078]
[1741433024848,3.2078,2134.1,2133.5,3.2078]
[1741433025050,4.01410813,2134.1,2133.5,3.2078]
[1741433025745,0.80630813,2134.1,2133.6,15.4]
[1741433026146,0.80630813,2134.1,2133.7,0.6187]
[1741433026351,3.3116,2134.2,2133.7,0.6187]
[1741433026550,4.91637872,2134.2,2133.7,0.6187]
[1741433026753,0.80630813,2134.1,2133.7,0.6187]
[1741433026955,4.18740813,2134.2,2133.7,0.6187]
[1741433029151,2.12840813,2134.2,2133.7,0.6187]
[1741433029351,4.18740813,2134.2,2133.7,0.6187]
[1741433030654,3.2078,2134.0,2133.7,0.6187]
[1741433031054,3.2078,2134.0,2133.5,3.2078]
[1741433031257,3.2078,2134.0,2133.5,3.8432]
[1741433035257,0.80630813,2134.1,2133.5,3.8432]
[1741433035455,4.18740813,2134.2,2133.5,3.8432]
[1741433035659,4.18740813,2134.2,2133.6,0.635]
[1741433039760,1.44830813,2134.2,2133.6,0.635]
[1741433040057,2.053,2134.1,2133.6,0.635]
[1741433041959,3.49930813,2134.2,2133.6,0.635]
[1741433042552,1.44830813,2134.2,2133.6,0.635]
[1741433042750,0.6671,2134.4,2133.6,0.635]
[1741433042751,1.47340813,2134.4,2133.8,3.2078]
[1741433042961,0.80630813,2134.4,2133.9,0.6471]
[1741433043156,0.80630813,2134.4,2134.0,0.6373]
[1741433043456,3.49190813,2134.5,2134.0,0.6373]
[1741433043853,3.49894015,2134.5,2134.0,0.64433202]
[1741433044651,3.2078,2134.3,2134.0,0.00703202]
[1741433044857,0.6256,2134.2,2134.0,0.00703202]
[1741433045161,3.2078,2134.3,2134.0,0.00703202]
[1741433045750,0.80630813,2134.4,2134.0,0.00703202]
[1741433045963,2.69263202,2134.5,2134.0,0.65753202]
[1741433046165,4.29809637,2134.5,2134.0,0.65753202]
[1741433046357,3.2078,2134.4,2134.0,0.65753202]
[1741433046657,4.01410813,2134.4,2134.0,0.65753202]
[1741433046962,4.81358918,2134.4,2134.0,0.65753202]
[1741433047362,0.6107,2134.3,2134.0,0.65753202]
[1741433047563,3.19322402,2134.3,2134.0,0.65753202]
[1741433049852,3.19322402,2134.3,2134.0,0.00703202]
[1741433050866,3.11682402,2134.3,2134.0,0.00703202]
[1741433052259,1.70664297,2134.3,2134.0,0.00703202]
[1741433052462,0.70074297,2134.3,2134.1,3.2078]
[1741433052858,0.00703202,2134.5,2134.1,3.2078]
[1741433054568,0.00703202,2134.5,2134.2,15.4]
[1741433054861,0.00703202,2134.5,2134.3,0.657]
[1741433055066,0.00703202,2134.5,2134.4,0.6113]
[1741433055759,0.00703202,2134.5,2134.4,1.2192]
[1741433056159,0.00703202,2134.5,2134.4,4.427]
[1741433056955,0.00703202,2134.5,2134.4,3.8157]
[1741433058856,0.00703202,2134.5,2134.1,0.6247]
[1741433059061,0.00703202,2134.5,2134.1,1.94]
[1741433059861,3.21483202,2134.5,2134.1,1.3153]
[1741433060061,0.6613,2134.4,2134.1,1.3153]
[1741433060663,3.21483202,2134.5,2134.1,1.3153]
[1741433060863,0.00703202,2134.5,2134.2,0.6643]
[1741433063270,0.00703202,2134.5,2134.3,3.2078]
[1741433072272,0.00703202,2134.5,2134.1,1.3153]
[1741433072473,3.21483202,2134.5,2134.0,0.00703202]
[1741433073273,3.2078,2134.1,2134.0,0.00703202]
[1741433073571,5.2578,2134.1,2133.2,5.2608]
[1741433073770,3.2078,2133.8,2133.2,5.2608]
[1741433074076,3.2078,2133.8,2133.2,3.2078]
[1741433074671,3.2078,2133.8,2133.3,0.00703202]
[1741433074878,2.053,2133.7,2133.3,0.00703202]
[1741433076274,3.2841,2134.0,2133.3,0.00703202]
[1741433076670,0.6214,2133.9,2133.3,0.00703202]
[1741433077581,0.6214,2133.9,2133.5,3.2078]
[1741433077772,0.6214,2133.9,2133.6,0.6387]
[1741433077976,0.6214,2133.9,2133.6,1.2482]
[1741433079578,0.6214,2133.9,2133.5,3.2078]
[1741433079579,3.8292,2133.9,2133.5,3.2078]
[1741433081187,3.8292,2133.9,2133.5,3.866]
[1741433082181,4.4397,2133.9,2133.5,3.866]
[1741433082695,4.4397,2133.9,2133.5,3.2078]
[1741433082987,3.2078,2133.6,2133.3,0.00703202]
[1741433083183,1.3232,2133.5,2133.3,0.00703202]
[1741433084493,2.058,2133.7,2133.3,0.00703202]
[1741433087393,3.2078,2133.6,2133.3,0.00703202]
[1741433087888,2.058,2133.7,2133.3,0.00703202]
[1741433088385,3.3198,2133.8,2133.3,0.00703202]
[1741433090287,3.2078,2133.6,2133.3,0.00703202]
[1741433093093,3.3198,2133.8,2133.3,0.00703202]
[1741433094392,3.2078,2133.6,2133.3,0.00703202]
[1741433098999,0.7752909,2133.7,2133.3,3.21483202]
[1741433099194,2.061,2134.1,2133.6,3.2078]
[1741433099500,2.6972,2134.1,2133.6,3.2078]
[1741433100197,2.061,2134.1,2133.6,3.2078]
[1741433100600,3.2078,2134.2,2133.6,3.2078]
[1741433100999,3.98412377,2134.2,2133.6,3.2078]
[1741433101500,4.78250416,2134.2,2133.6,3.2078]
[1741433101894,3.98412377,2134.2,2133.6,3.2078]
[1741433103499,4.78292995,2134.2,2133.6,3.2078]
[1741433103800,3.98412377,2134.2,2133.6,3.2078]
[1741433104997,3.2078,2134.2,2133.6,3.2078]
[1741433105505,2.06803202,2134.5,2133.9,3.2078]
[1741433105693,2.84536074,2134.5,2134.0,1.225]
[1741433105897,2.06803202,2134.5,2134.0,1.225]
[1741433107495,2.71073202,2134.5,2134.0,1.225]
[1741433107698,3.48725092,2134.5,2134.0,1.225]
[1741433109606,3.48700049,2134.5,2134.0,1.225]
[1741433109806,2.71073202,2134.5,2134.0,1.225]
[1741433110002,0.6356,2134.4,2134.0,1.225]
[1741433110204,0.6076,2134.3,2134.0,1.225]
[1741433110602,3.8154,2134.3,2133.9,3.2078]
[1741433111901,0.6076,2134.3,2133.9,3.2078]
[1741433112403,3.8154,2134.3,2133.9,3.2078]
[1741433113201,3.8154,2134.3,2133.8,0.6644]
[1741433113402,4.59123632,2134.3,2133.6,3.8113]
[1741433119204,3.2078,2134.1,2133.6,3.8113]
[1741433119406,5.2618,2134.1,2133.6,3.8113]
[1741433119807,0.659,2134.0,2133.6,3.8113]
[1741433120009,0.6622,2133.9,2133.6,3.8113]
[1741433122606,0.00703202,2134.5,2133.7,2.052]
[1741433122809,0.00703202,2134.5,2134.2,3.2078]
[1741433123113,0.00703202,2134.5,2134.3,1.2644]
[1741433123307,3.21483202,2134.5,2133.8,15.4]
[1741433123614,0.6156,2134.4,2133.9,1.2644]
[1741433123810,1.242,2134.4,2133.9,1.2644]
[1741433125011,1.242,2134.4,2134.0,0.67]
[1741433127399,2.01930851,2134.4,2134.0,0.67]
[1741433127603,2.01930851,2134.4,2133.9,1.2644]
[1741433127809,2.01930851,2134.4,2133.9,4.4722]
[1741433128004,2.7204,2134.3,2133.9,4.4722]
[1741433128199,2.7204,2134.3,2133.9,1.2644]
[1741433129509,3.44390851,2134.4,2133.9,1.2644]
[1741433130215,0.00703202,2134.5,2133.9,4.4722]
[1741433131512,0.00703202,2134.5,2134.2,3.2078]
[1741433131713,0.00703202,2134.5,2134.3,1.3016]
[1741433132917,0.00703202,2134.5,2134.3,1.9304]
[1741433133518,3.2078,2135.1,2134.3,1.9304]
[1741433133821,5.2578,2135.1,2134.5,3.2078]
[1741433134118,0.77746503,2135.0,2134.5,3.2078]
[1741433134517,3.2078,2135.1,2134.5,3.2078]
[1741433134718,0.00703202,2135.0,2134.5,3.21483202]
[1741433136614,0.00703202,2135.0,2134.9,3.2078]
[1741433137914,0.00703202,2135.0,2134.6,5.2548]
[1741433138313,0.00703202,2135.0,2134.6,3.2078]
[1741433138520,0.00703202,2135.0,2134.7,0.6453]
[1741433139317,0.00703202,2135.0,2134.6,3.2078]
[1741433139618,2.051,2134.9,2134.6,0.6453]
[1741433139818,2.6808,2134.9,2134.6,0.6453]
[1741433140013,3.2078,2134.8,2134.6,0.6453]
[1741433140209,3.98391854,2134.8,2134.5,0.00703202]
[1741433140412,0.6357,2134.7,2134.5,0.00703202]
[1741433141720,3.98391854,2134.8,2134.5,0.00703202]
[1741433141920,6.03691854,2134.8,2134.5,0.00703202]
[1741433142121,5.2608,2134.8,2134.5,0.00703202]
[1741433142326,2.053,2134.8,2134.5,0.00703202]
[1741433143816,5.2608,2134.8,2134.5,0.00703202]
[1741433147328,0.64833202,2135.0,2134.5,3.21483202]
[1741433147533,0.00703202,2135.0,2134.5,3.21483202]
[1741433150732,0.00703202,2135.0,2134.8,3.2078]
[1741433151039,0.00703202,2135.0,2134.9,1.9729]
[1741433157944,0.00703202,2135.0,2134.9,1.3043]
[1741433176154,0.00703202,2135.0,2134.8,3.2078]
[1741433184363,0.00703202,2135.0,2134.5,3.21483202]
[1741433184559,0.78266269,2135.0,2134.5,3.21483202]
[1741433184755,1.5821111,2135.0,2134.5,3.21483202]
[1741433184959,3.2078,2134.8,2134.5,0.00703202]
[1741433185262,1.9173,2134.7,2134.5,0.00703202]
[1741433185562,2.69293067,2134.7,2134.5,0.00703202]
[1741433185952,2.038,2134.8,2134.5,3.21483202]
[1741433188171,0.61973202,2135.0,2134.5,3.21483202]
[1741433188465,0.78470426,2135.0,2134.5,3.21483202]
[1741433188662,0.00703202,2135.0,2134.5,3.21483202]
[1741433191674,0.00703202,2135.0,2134.8,3.2078]
[1741433191976,0.00703202,2135.0,2134.9,1.296]
[1741433199283,0.00703202,2135.0,2134.9,1.9393]
[1741433201283,2.031,2135.6,2134.9,1.9393]
[1741433201483,2.80814122,2135.6,2135.0,3.2078]
[1741433201783,2.80814122,2135.6,2135.1,15.4]
[1741433201985,2.80814122,2135.6,2135.3,3.2078]
[1741433202580,2.80814122,2135.6,2135.3,3.85]
[1741433203584,2.80765926,2135.6,2135.3,3.85]
[1741433203985,2.80765926,2135.6,2135.3,0.6422]
[1741433204184,1.2141,2135.5,2135.2,0.6218]
[1741433204386,0.6395,2135.4,2135.2,0.6218]
[1741433204582,0.6395,2135.4,2135.0,3.2078]
[1741433205490,3.8473,2135.4,2135.0,3.2078]
[1741433205688,4.62395926,2135.4,2135.0,3.2078]
[1741433206989,4.62395926,2135.4,2134.5,0.00703202]
[1741433206990,3.2078,2135.1,2134.5,3.21483202]
[1741433207286,1.9662,2135.0,2134.5,3.21483202]
[1741433207588,1.9662,2135.0,2134.5,0.00703202]
[1741433207589,3.2078,2134.8,2134.5,0.00703202]
[1741433208585,2.032,2134.7,2134.5,0.00703202]
[1741433208785,1.3131,2134.6,2134.5,0.00703202]
[1741433208987,1.9775,2134.6,2134.5,0.00703202]
[1741433209586,0.6652,2134.6,2134.5,0.00703202]
[1741433210495,2.032,2134.7,2134.5,0.00703202]
[1741433210994,2.80751331,2134.7,2134.5,0.00703202]
[1741433211190,2.032,2134.7,2134.5,0.00703202]
[1741433214301,0.6632,2134.6,2134.5,0.00703202]
[1741433214503,1.2849,2134.6,2134.5,0.00703202]
[1741433214700,1.2849,2134.6,2134.1,3.2078]
[1741433214701,5.2849,2134.6,2134.1,3.2078]
[1741433214896,4.62241331,2134.5,2134.1,3.2078]
[1741433215994,4.62944533,2134.5,2134.1,3.21483202]
[1741433218301,3.85393202,2134.5,2134.1,3.21483202]
[1741433219703,5.89093202,2134.5,2134.1,3.21483202]
[1741433220004,2.68313202,2134.5,2134.2,1.2714]
[1741433220695,2.68313202,2134.5,2134.2,1.9137]
[1741433220696,0.64613202,2134.5,2134.2,1.9137]
[1741433221510,0.00703202,2134.5,2134.2,1.9137]
[1741433222907,0.00703202,2134.5,2134.2,1.2714]
[1741433223201,3.21483202,2134.5,2134.1,3.21483202]
[1741433223602,3.21483202,2134.5,2134.1,0.00703202]
[1741433223904,3.2078,2134.2,2133.4,3.2078]
[1741433224102,3.2078,2133.9,2133.1,0.6218]
[1741433224499,3.2078,2133.6,2133.1,0.6218]
[1741433224699,3.2966,2133.5,2133.0,3.2078]
[1741433224998,3.9338,2133.5,2133.1,0.00703202]
[1741433225501,3.2078,2133.3,2133.1,0.00703202]
[1741433225704,3.2078,2133.3,2132.5,3.2078]
[1741433226005,0.77167993,2133.4,2132.1,5.027]
[1741433226006,3.2078,2133.0,2132.1,20.6508]
[1741433226199,2.043,2132.9,2132.1,18.6078]
[1741433226506,2.6629,2132.9,2132.1,18.6078]
[1741433226703,3.2078,2132.7,2132.1,18.6078]
[1741433226902,0.00703202,2132.7,2132.3,0.00703202]
[1741433227504,0.00703202,2132.7,2132.4,3.2078]
[1741433227707,0.00703202,2132.7,2132.5,0.6553]
[1741433228809,0.00703202,2132.7,2132.3,0.00703202]
[1741433230312,3.2078,2132.5,2132.3,0.00703202]
[1741433230607,5.2598,2132.5,2132.3,0.00703202]
[1741433232914,2.052,2132.5,2132.3,0.00703202]
[1741433233910,0.66043202,2132.7,2132.3,0.00703202]